fUSD/lending_fUSD_20240904
["ID","MTS","AMOUNT","RATE_DAILY","PERIOD"]
[337132140,1725449467572,-477.72,0.00014567,2]
[337132141,1725449467582,-500.0,0.00014567,2]
[337132142,1725449467591,-500.0,0.00014567,2]
[337132143,1725449467600,-500.0,0.00014567,2]
[337132144,1725449467609,-500.0,0.00014567,2]
[337132145,1725449467618,-500.0,0.00014567,2]
[337132146,1725449467627,-500.0,0.00014567,2]
[337132147,1725449467636,-500.0,0.00014567,2]
[337132148,1725449467645,-439.32,0.00014567,2]
[337132149,1725449467655,-500.0,0.00014567,2]
[337132150,1725449467664,-500.0,0.00014567,2]
[337132151,1725449467673,-735.12,0.00014567,2]
[337132152,1725449467682,-1122.8,0.00014567,2]
[337132153,1725449467691,-1264.8,0.00014567,2]
[337132154,1725449467701,-23201.5,0.00014567,2]
[337132155,1725449467710,-23201.5,0.00014567,2]
[337132156,1725449467719,-23201.5,0.00014567,2]
[337132157,1725449467728,-1258.15,0.00014567,2]
[337132158,1725449467737,-5539.45,0.00014567,2]
[337132159,1725449467747,-5539.45,0.00014567,2]
[337132160,1725449467756,-5539.45,0.00014567,2]
[337132161,1725449467765,-1688.75,0.00014567,2]
[337132162,1725449467775,-1688.75,0.00014567,2]
[337132163,1725449467784,-1688.75,0.00014567,2]
[337132164,1725449467794,-1814.06,0.00014567,2]
[337132165,1725449467803,-13416.06,0.00014567,2]
[337132166,1725449467813,-13416.06,0.00014567,2]
[337132167,1725449467822,-13416.06,0.00014567,2]
[337132168,1725449467832,-535.76,0.00014567,2]
[337132169,1725449467840,-535.76,0.00014567,2]
[337132170,1725449467849,-535.76,0.00014567,2]
[337132171,1725449467862,-2485.24,0.00014567,2]
[337132172,1725449467872,-3433.42,0.00014567,2]
[337132173,1725449467881,-3433.42,0.00014567,2]
[337132174,1725449467890,-3433.42,0.00014567,2]
[337132175,1725449467900,-2953.99,0.00014567,2]
[337132176,1725449467910,-2953.99,0.00014567,2]
[337132177,1725449467920,-2953.99,0.00014567,2]
[337132178,1725449467929,-1692.86,0.00014567,2]
[337132179,1725449467939,-2697.86,0.00014567,2]
[337132180,1725449467950,-2697.86,0.00014567,2]
[337132181,1725449467959,-2697.86,0.00014567,2]
[337132182,1725449467968,-2455.98,0.00014567,2]
[337132183,1725449467977,-2455.98,0.00014567,2]
[337132184,1725449467987,-2455.98,0.00014567,2]
[337132185,1725449467996,-1458.47,0.00014567,2]
[337132186,1725449468005,-1458.47,0.00014567,2]
[337132187,1725449468014,-1458.47,0.00014567,2]
[337132188,1725449468024,-1539.43,0.00014567,2]
[337132189,1725449468033,-1539.43,0.00014567,2]
[337132190,1725449468043,-1539.43,0.00014567,2]
[337132191,1725449468052,-1663.46,0.00014567,2]
[337132192,1725449468061,-1663.46,0.00014567,2]
[337132193,1725449468070,-1663.46,0.00014567,2]
[337132194,1725449468079,-1621.85,0.00014567,2]
[337132195,1725449468088,-1621.85,0.00014567,2]
[337132196,1725449468097,-1621.85,0.00014567,2]
[337132197,1725449468106,-1537.73,0.00014567,2]
[337132198,1725449468115,-1537.73,0.00014567,2]
[337132199,1725449468124,-1537.73,0.00014567,2]
[337132200,1725449468133,-2881.94,0.00014567,2]
[337132201,1725449468143,-6092.26,0.00014567,2]
[337132202,1725449468152,-6092.26,0.00014567,2]
[337132203,1725449468161,-6092.26,0.00014567,2]
[337132204,1725449468170,-1434.96,0.00014567,2]
[337132205,1725449468179,-1434.96,0.00014567,2]
[337132206,1725449468189,-2641.74,0.00014567,2]
[337132207,1725449468198,-1434.96,0.00014567,2]
[337132208,1725449468208,-2641.74,0.00014567,2]
[337132209,1725449468218,-2641.74,0.00014567,2]
[337132210,1725449468229,-1998.34,0.00014567,2]
[337132211,1725449468238,-1998.34,0.00014567,2]
[337132212,1725449468248,-1998.34,0.00014567,2]
[337132213,1725449468258,-1743.77,0.00014567,2]
[337132214,1725449468267,-1743.77,0.00014567,2]
[337132215,1725449468276,-1743.77,0.00014567,2]
[337132216,1725449468285,-2069.39,0.00014567,2]
[337132217,1725449468296,-2069.39,0.00014567,2]
[337132218,1725449468305,-2069.39,0.00014567,2]
[337132219,1725449468314,-1619.01,0.00014567,2]
[337132220,1725449468323,-1619.01,0.00014567,2]
[337132221,1725449468332,-1619.01,0.00014567,2]
[337132222,1725449468341,-4222.26,0.00014567,2]
[337132223,1725449468353,-4222.26,0.00014567,2]
[337132224,1725449468363,-4222.26,0.00014567,2]
[337132225,1725449468372,-2718.35,0.00014567,2]
[337132226,1725449468382,-2718.35,0.00014567,2]
[337132227,1725449468390,-2718.35,0.00014567,2]
[337132228,1725449468399,-2191.73,0.00014567,2]
[337132229,1725449468409,-2191.73,0.00014567,2]
[337132230,1725449468418,-2191.73,0.00014567,2]
[337132231,1725449468430,-2886.04,0.00014567,2]
[337132232,1725449468439,-2886.04,0.00014567,2]
[337132233,1725449468449,-2886.04,0.00014567,2]
[337132234,1725449468458,-3130.22,0.00014567,2]
[337132235,1725449468467,-3130.22,0.00014567,2]
[337132236,1725449468476,-3130.22,0.00014567,2]
[337132237,1725449468485,-5307.94,0.00014567,2]
[337132238,1725449468493,-5307.94,0.00014567,2]
[337132239,1725449468502,-5307.94,0.00014567,2]
[337132240,1725449468511,-1955.73,0.00014567,2]
[337132241,1725449468521,-1955.73,0.00014567,2]
[337132242,1725449468530,-1955.73,0.00014567,2]
[337132243,1725449468540,-2371.43,0.00014567,2]
[337132244,1725449468549,-2371.43,0.00014567,2]
[337132245,1725449468558,-2371.43,0.00014567,2]
[337132246,1725449468567,-1668.35,0.00014567,2]
[337132247,1725449468577,-1668.35,0.00014567,2]
[337132248,1725449468587,-1668.35,0.00014567,2]
[337132249,1725449468596,-3836.89,0.00014567,2]
[337132250,1725449468605,-3836.89,0.00014567,2]
[337132251,1725449468614,-3836.89,0.00014567,2]
[337132252,1725449468623,-1987.06,0.00014567,2]
[337132253,1725449468633,-1987.06,0.00014567,2]
[337132254,1725449468643,-1987.06,0.00014567,2]
[337132255,1725449468652,-1686.85,0.00014567,2]
[337132256,1725449468662,-1686.85,0.00014567,2]
[337132257,1725449468672,-1686.85,0.00014567,2]
[337132258,1725449468681,-6705.01,0.00014567,2]
[337132259,1725449468690,-6705.01,0.00014567,2]
[337132260,1725449468700,-6705.01,0.00014567,2]
[337132261,1725449468709,-3942.48,0.00014567,2]
[337132262,1725449468719,-3942.48,0.00014567,2]
[337132263,1725449468729,-3942.48,0.00014567,2]
[337132264,1725449468739,-2468.26,0.00014567,2]
[337132265,1725449468748,-2468.26,0.00014567,2]
[337132266,1725449468758,-2468.26,0.00014567,2]
[337132267,1725449468768,-2723.93,0.00014567,2]
[337132268,1725449468777,-2723.93,0.00014567,2]
[337132269,1725449468787,-2723.93,0.00014567,2]
[337132270,1725449468797,-3148.4,0.00014567,2]
[337132271,1725449468806,-3148.4,0.00014567,2]
[337132272,1725449468816,-3148.4,0.00014567,2]
[337132273,1725449468825,-3148.4,0.00014567,2]
[337132274,1725449468835,-3967.05,0.00014567,2]
[337132275,1725449468845,-3967.05,0.00014567,2]
[337132276,1725449468854,-3967.05,0.00014567,2]
[337132277,1725449468863,-2514.65,0.00014567,2]
[337132278,1725449468873,-2514.65,0.00014567,2]
[337132279,1725449468882,-2514.65,0.00014567,2]
[337132280,1725449468892,-3336.2,0.00014567,2]
[337132281,1725449468902,-3336.2,0.00014567,2]
[337132282,1725449468911,-3336.2,0.00014567,2]
[337132283,1725449468921,-2580.18,0.00014567,2]
[337132284,1725449468931,-2580.18,0.00014567,2]
[337132285,1725449468940,-2580.18,0.00014567,2]
[337132286,1725449468950,-2090.96,0.00014567,2]
[337132287,1725449468959,-2090.96,0.00014567,2]
[337132288,1725449468969,-2090.96,0.00014567,2]
[337132289,1725449468978,-17292.54,0.00014567,2]
[337132290,1725449468987,-17292.54,0.00014567,2]
[337132291,1725449468996,-17292.54,0.00014567,2]
[337132292,1725449469005,-500.0,0.00014567,2]
[337132293,1725449469015,-500.0,0.00014567,2]
[337132294,1725449469024,-1717.06,0.00014567,2]
[337132295,1725449469040,-500.0,0.00014567,2]
[337132296,1725449469051,-1717.06,0.00014567,2]
[337132297,1725449469060,-500.0,0.00014567,2]
[337132298,1725449469069,-1717.06,0.00014567,2]
[337132299,1725449469079,-12177.64,0.00014567,2]
[337132300,1725449469088,-12177.64,0.00014567,2]
[337132301,1725449469097,-12177.64,0.00014567,2]
[337132302,1725449469107,-2568.97,0.00014567,2]
[337132303,1725449469116,-2568.97,0.00014567,2]
[337132304,1725449469126,-2568.97,0.00014567,2]
[337132305,1725449469135,-500.0,0.00014567,2]
[337132306,1725449469145,-500.0,0.00014567,2]
[337132307,1725449469154,-500.0,0.00014567,2]
[337132308,1725449469163,-500.0,0.00014567,2]
[337132309,1725449469173,-13920.9,0.00014567,2]
[337132310,1725449469182,-13920.9,0.00014567,2]
[337132311,1725449469191,-13920.9,0.00014567,2]
[337132312,1725449469201,-2030.75,0.00014567,2]
[337132313,1725449469210,-2030.75,0.00014567,2]
[337132314,1725449469219,-2030.75,0.00014567,2]
[337132315,1725449469229,-2030.75,0.00014567,2]
[337132316,1725449469238,-3322.17,0.00014567,2]
[337132317,1725449469247,-3322.17,0.00014567,2]
[337132318,1725449469256,-3322.17,0.00014567,2]
[337132319,1725449469267,-528.34,0.00014567,2]
[337132320,1725449469276,-528.34,0.00014567,2]
[337132321,1725449469286,-528.34,0.00014567,2]
[337132322,1725449469297,-528.34,0.00014567,2]
[337132323,1725449469306,-1012.16,0.00014567,2]
[337132324,1725449469315,-1012.16,0.00014567,2]
[337132325,1725449469325,-1012.16,0.00014567,2]
[337132326,1725449469334,-487.55,0.00014567,2]
[337132327,1725449469344,-8049.63,0.00014567,2]
[337132328,1725449469356,-8049.63,0.00014567,2]
[337132329,1725449469366,-8049.63,0.00014567,2]
[337132330,1725449469375,-1849.72,0.00014567,2]
[337132331,1725449469384,-1849.72,0.00014567,2]
[337132332,1725449469394,-1849.72,0.00014567,2]
[337132333,1725449469403,-2670.62,0.00014567,2]
[337132334,1725449469413,-2670.62,0.00014567,2]
[337132335,1725449469422,-2670.62,0.00014567,2]
[337132336,1725449469433,-4004.18,0.00014567,2]
[337132337,1725449469446,-4004.18,0.00014567,2]
[337132338,1725449469455,-4004.18,0.00014567,2]
[337132339,1725449469465,-4068.02,0.00014567,2]
[337132340,1725449469475,-4068.02,0.00014567,2]
[337132341,1725449469484,-4068.02,0.00014567,2]
[337132342,1725449469493,-5088.19,0.00014567,2]
[337132343,1725449469502,-5088.19,0.00014567,2]
[337132344,1725449469511,-3156.02488612,0.00014567,2]
[337132345,1725449470246,-1932.16511388,0.00014567,2]
[337132346,1725449470255,-3146.54376983,0.00014567,2]
[337132347,1725449472386,-200.0,0.00013601,2]
[337132348,1725449502916,-13498.71,0.00013556,2]
[337132349,1725449539389,4702.26582723,0.00013,30]
[337132350,1725449540702,-200.0,0.00013548,2]
[337132351,1725449584340,-546.8,0.00013498,2]
[337132352,1725449599188,-160.36,0.00013306,2]
[337132353,1725449707035,-200.0,0.00013498,2]
[337132354,1725449720196,-2751.0,0.00013699,2]
[337132355,1725449720219,-1149.0,0.00013763,2]
[337132356,1725449723802,-173.78877838,0.00013763,2]
[337132357,1725449736188,312.1,0.0001158,2]
[337132358,1725449776721,-150.39,0.00013476,2]
[337132359,1725449815863,-1351.88,0.00013476,2]
[337132360,1725449845160,-250.0,0.00013474,2]
[337132361,1725449863707,-163.45,0.00013476,2]
[337132362,1725449865472,-151.72,0.00013844,2]
[337132363,1725449906257,156.57,0.00010959,2]
[337132364,1725449915197,-250.0,0.00013498,2]
[337132365,1725449925318,-250.0,0.00013489,2]
[337132366,1725449934482,-9677.46,0.00013463,2]
[337132367,1725449973362,-3970.11364814,0.00013498,2]
[337132368,1725450003458,-300.0,0.00013498,2]
[337132369,1725450019979,-949.31,0.00013395,2]
[337132370,1725450031180,-600.0,0.00013475,2]
[337132371,1725450051563,-3481.87635186,0.00013498,2]
[337132372,1725450051587,-488.23729628,0.00013699,2]
[337132373,1725450083972,-619.94,0.0001337,2]
[337132374,1725450098938,-517.43,0.00013361,2]
[337132375,1725450111200,-1000.0,0.00013361,2]
[337132378,1725450133416,-271.74,0.0001337,2]
[337132379,1725450133448,-11.76270372,0.00013699,2]
[337132380,1725450133476,-200.0,0.00013699,2]
[337132381,1725450133515,-160.38,0.00013844,2]
[337132388,1725450190671,-488.96,0.00013399,2]
[337132393,1725450217677,-150.0,0.00013399,2]
[337132394,1725450217699,-48.16210228,0.00013944,2]
[337132395,1725450239635,-169.71,0.00013382,2]
[337132396,1725450240221,-169.71,0.00013393,2]
[337132397,1725450243099,-169.71,0.00013404,2]
[337132398,1725450251092,-169.71,0.00013415,2]
[337132399,1725450251114,-169.71,0.00013426,2]
[337132400,1725450251140,-169.71,0.00013438,2]
[337132401,1725450251161,-169.71,0.00013449,2]
[337132402,1725450251183,-103.55789772,0.00013944,2]
[337132403,1725450269515,-255.0,0.00013945,2]
[337132404,1725450304533,-150.0,0.000135,2]
[337132405,1725450305074,-600.0,0.000135,2]
[337132406,1725450305697,-450.0,0.000135,2]
[337132407,1725450311622,172.0968472,0.00013093,2]
[337132408,1725450328125,177.9031528,0.00011463,2]
[337132409,1725450328149,126.9068472,0.00011463,2]
[337132410,1725450337951,183.9,0.00013372,2]
[337132411,1725450341490,200.33,0.00013372,2]
[337132421,1725450364171,1203.02906483,0.000151,120]
[337132422,1725450370457,510.0,0.00015068,120]
[337132423,1725450423047,250.0,0.00013379,2]
[337132436,1725450437241,-179.72,0.00013699,2]
[337132438,1725450444851,250.0,0.00013387,2]
[337132440,1725450453742,-108.28,0.00013699,2]
[337132441,1725450453765,-279.72,0.00013699,2]
[337132442,1725450458861,188.8631528,0.00013377,2]
[337132443,1725450458885,61.1368472,0.00013377,2]
[337132444,1725450483417,-220.28,0.00013699,2]
[337132445,1725450483441,-79.72,0.00013727,2]
[337132446,1725450538892,-800.0,0.00013726,2]
[337132447,1725450538916,-225.09,0.00013727,2]
[337132448,1725450538937,-388.0,0.0001377,2]
[337132449,1725450538971,-151.61,0.00013826,2]
[337132450,1725450538992,-179.72,0.00013926,2]
[337132451,1725450539015,-300.0,0.00013944,2]
[337132452,1725450550600,-800.0,0.00013944,2]
[337132453,1725450564667,108.5731528,0.00013399,2]
[337132455,1725450594074,5297.73417277,0.000134,30]
[337132456,1725450603622,9451.71647794,0.00012204,2]
[337132457,1725450607524,-258.71,0.00013372,2]
[337132458,1725450607547,-163.1868472,0.00013399,2]
[337132459,1725450607580,-9578.1031528,0.000134,30]
[337132460,1725450611758,-10000.0,0.000134,30]
[337132461,1725450615645,-10000.0,0.000134,30]
[337132474,1725450632259,-791.24822385,0.000134,30]
[337132475,1725450632313,-2977.63233919,0.000134,30]
[337132480,1725450632598,-1541.09145521,0.000134,30]
[337132482,1725450632610,-1151.55012815,0.000134,30]
[337132486,1725450632621,-1007.07587274,0.000134,30]
[337132489,1725450632632,-471.9509302,0.000134,30]
[337132491,1725450632644,-3128.4253,0.000134,30]
[337132493,1725450632654,-8597.32929577,0.000134,30]
[337132496,1725450632669,-431.36387479,0.000134,30]
[337132498,1725450632690,-441.93854479,0.000134,30]
[337132506,1725450638343,-27550.444,0.000134,30]
[337132507,1725450638355,-8355.461751,0.000134,30]
[337132508,1725450638366,-37616.033428,0.000134,30]
[337132509,1725450638553,-6082.39880002,0.000134,30]
[337132667,1725450640339,-10580.21873072,0.000134,30]
[337132669,1725450640349,-750.0,0.000135,2]
[337132671,1725450640358,-333.0,0.0001354,2]
[337132673,1725450640369,-333.0,0.0001364,2]
[337132675,1725450640378,-3170.11364814,0.0001364,2]
[337132676,1725450640387,-333.0,0.00013737,2]
[337132678,1725450640397,-333.0,0.000138,2]
[337132680,1725450640406,-800.0,0.00013945,2]
[337132682,1725450640416,-800.0,0.00013945,2]
[337132684,1725450640425,-800.0,0.00013945,2]
[337132686,1725450640435,-800.0,0.00013945,2]
[337132688,1725450640445,-290.310731,0.00013973,2]
[337132690,1725450640455,-198.16210228,0.00014,2]
[337132692,1725450640464,-150.0,0.00014038,2]
[337132694,1725450640473,-153.86292,0.00014038,2]
[337132696,1725450640482,-813.0112,0.00014068,2]
[337132698,1725450640491,-499.99,0.00014068,2]
[337132699,1725450640501,-1051.97277667,0.0001409,2]
[337132701,1725450640510,-2828.62,0.00014254,2]
[337132703,1725450640520,-150.0,0.00014254,2]
[337132705,1725450640529,-500.0,0.00014255,2]
[337132707,1725450640538,-500.0,0.00014255,2]
[337132709,1725450640547,-500.0,0.00014255,2]
[337132710,1725450640557,-500.0,0.00014255,2]
[337132712,1725450640566,-500.0,0.00014255,2]
[337132714,1725450640575,-500.0,0.00014255,2]
[337132716,1725450640585,-500.0,0.00014255,2]
[337132718,1725450640594,-500.0,0.00014255,2]
[337132720,1725450640603,-500.0,0.00014255,2]
[337132721,1725450640612,-500.0,0.00014255,2]
[337132723,1725450640621,-500.0,0.00014255,2]
[337132725,1725450640631,-500.0,0.00014255,2]
[337132727,1725450640640,-500.0,0.00014255,2]
[337132729,1725450640651,-499.999999,0.00014255,2]
[337132731,1725450640660,-500.0,0.00014255,2]
[337132733,1725450640669,-500.0,0.00014255,2]
[337132735,1725450640679,-500.0,0.00014255,2]
[337132737,1725450640690,-500.0,0.00014255,2]
[337132738,1725450640700,-500.0,0.00014255,2]
[337132740,1725450640709,-500.0,0.00014255,2]
[337132742,1725450640718,-500.0,0.00014255,2]
[337132744,1725450640727,-500.0,0.00014255,2]
[337132745,1725450640738,-541.34,0.00014255,2]
[337132747,1725450640747,-500.0,0.00014267,2]
[337132749,1725450640757,-500.0,0.00014267,2]
[337132751,1725450640767,-500.0,0.00014267,2]
[337132753,1725450640777,-500.0,0.00014267,2]
[337132755,1725450640786,-423.08160141,0.00014267,2]
[337132757,1725450640796,-500.0,0.00014267,2]
[337132759,1725450640805,-500.0,0.00014267,2]
[337132761,1725450640814,-500.0,0.00014267,2]
[337132763,1725450640823,-500.0,0.00014267,2]
[337132765,1725450640833,-500.0,0.00014267,2]
[337132767,1725450640842,-500.0,0.00014267,2]
[337132769,1725450640851,-590.79,0.00014267,2]
[337132770,1725450640860,-500.0,0.00014267,2]
[337132772,1725450640869,-5428.61,0.00014267,2]
[337132774,1725450640879,-500.0,0.00014267,2]
[337132776,1725450640889,-816.18,0.00014267,2]
[337132778,1725450640900,-500.0,0.00014267,2]
[337132780,1725450640909,-500.0,0.00014267,2]
[337132782,1725450640919,-500.0,0.00014267,2]
[337132784,1725450640928,-500.0,0.00014267,2]
[337132786,1725450640938,-500.0,0.00014267,2]
[337132788,1725450640947,-500.0,0.00014267,2]
[337132790,1725450640956,-500.0,0.00014267,2]
[337132792,1725450640966,-500.0,0.00014267,2]
[337132794,1725450640975,-500.0,0.00014267,2]
[337132796,1725450640984,-500.0,0.00014267,2]
[337132798,1725450640993,-500.0,0.00014267,2]
[337132800,1725450641002,-500.0,0.00014267,2]
[337132802,1725450641011,-500.0,0.00014267,2]
[337132804,1725450641020,-500.0,0.00014267,2]
[337132806,1725450641030,-1093.24872676,0.00014275,2]
[337132808,1725450641039,-4798.13508272,0.00014277,2]
[337132810,1725450641048,-500.0,0.00014367,2]
[337132811,1725450641058,-500.0,0.00014367,2]
[337132813,1725450641067,-500.0,0.00014367,2]
[337132815,1725450641076,-500.0,0.00014367,2]
[337132817,1725450641085,-500.0,0.00014367,2]
[337132819,1725450641094,-500.0,0.00014367,2]
[337132821,1725450641104,-500.0,0.00014367,2]
[337132823,1725450641113,-500.0,0.00014367,2]
[337132825,1725450641122,-500.0,0.00014367,2]
[337132827,1725450641131,-500.0,0.00014367,2]
[337132829,1725450641141,-500.0,0.00014367,2]
[337132831,1725450641151,-590.79,0.00014367,2]
[337132833,1725450641161,-500.0,0.00014367,2]
[337132835,1725450641170,-5428.61,0.00014367,2]
[337132837,1725450641180,-500.0,0.00014367,2]
[337132838,1725450641189,-816.18,0.00014367,2]
[337132840,1725450641198,-500.0,0.00014367,2]
[337132842,1725450641207,-500.0,0.00014367,2]
[337132844,1725450641215,-500.0,0.00014367,2]
[337132846,1725450641224,-500.0,0.00014367,2]
[337132848,1725450641233,-500.0,0.00014367,2]
[337132849,1725450641242,-500.0,0.00014367,2]
[337132851,1725450641251,-500.0,0.00014367,2]
[337132853,1725450641261,-500.0,0.00014367,2]
[337132855,1725450641270,-500.0,0.00014367,2]
[337132857,1725450641279,-500.0,0.00014367,2]
[337132859,1725450641288,-500.0,0.00014367,2]
[337132861,1725450641298,-500.0,0.00014367,2]
[337132863,1725450641307,-500.0,0.00014367,2]
[337132865,1725450641316,-500.0,0.00014367,2]
[337132867,1725450641325,-500.0,0.00014367,2]
[337132869,1725450641334,-500.0,0.00014367,2]
[337132871,1725450641344,-500.0,0.00014367,2]
[337132873,1725450641353,-500.0,0.00014367,2]
[337132875,1725450641363,-500.0,0.00014367,2]
[337132877,1725450641373,-500.0,0.00014367,2]
[337132879,1725450641382,-500.0,0.00014367,2]
[337132881,1725450641391,-500.0,0.00014367,2]
[337132883,1725450641401,-500.0,0.00014367,2]
[337132885,1725450641410,-500.0,0.00014367,2]
[337132887,1725450641420,-500.0,0.00014367,2]
[337132889,1725450641431,-500.0,0.00014367,2]
[337132892,1725450641442,-500.0,0.00014367,2]
[337132893,1725450641452,-500.0,0.00014367,2]
[337132895,1725450641461,-500.0,0.00014367,2]
[337132897,1725450641470,-500.0,0.00014367,2]
[337132899,1725450641480,-500.0,0.00014367,2]
[337132901,1725450641489,-500.0,0.00014367,2]
[337132925,1725450641739,-500.0,0.00014367,2]
[337132927,1725450641749,-500.0,0.00014367,2]
[337132929,1725450641757,-541.34,0.00014367,2]
[337132931,1725450641769,-500.0,0.00014367,2]
[337132933,1725450641778,-500.0,0.00014367,2]
[337132935,1725450641787,-500.0,0.00014368,2]
[337132937,1725450641796,-500.0,0.00014368,2]
[337132939,1725450641805,-369.07427082,0.00014368,2]
[337132941,1725450641814,-500.0,0.00014368,2]
[337132942,1725450641823,-500.0,0.00014368,2]
[337132944,1725450641833,-500.0,0.00014368,2]
[337132946,1725450641842,-254.49727776,0.00014368,2]
[337132948,1725450641851,-500.0,0.00014368,2]
[337132950,1725450641860,-500.0,0.00014368,2]
[337132952,1725450641872,-500.0,0.00014368,2]
[337132954,1725450641882,-500.0,0.00014368,2]
[337132956,1725450641891,-590.79,0.00014368,2]
[337132958,1725450641905,-500.0,0.00014368,2]
[337132960,1725450641915,-5428.61,0.00014368,2]
[337132962,1725450641924,-500.0,0.00014368,2]
[337132964,1725450641933,-816.18,0.00014368,2]
[337132965,1725450641943,-500.0,0.00014368,2]
[337132967,1725450641952,-500.0,0.00014368,2]
[337132969,1725450641961,-500.0,0.00014368,2]
[337132971,1725450641971,-281.57262514,0.00014368,2]
[337132973,1725450641980,-500.0,0.00014368,2]
[337132975,1725450641989,-500.0,0.00014368,2]
[337132976,1725450641998,-500.0,0.00014368,2]
[337132977,1725450642007,-274.78,0.00014368,2]
[337132978,1725450642017,-500.0,0.00014368,2]
[337132979,1725450642026,-500.0,0.00014368,2]
[337132980,1725450642034,-500.0,0.00014368,2]
[337132981,1725450642044,-500.0,0.00014368,2]
[337132982,1725450642054,-500.0,0.00014368,2]
[337132983,1725450642063,-500.0,0.00014368,2]
[337132984,1725450642072,-500.0,0.00014368,2]
[337132985,1725450642083,-467.04219907,0.00014368,2]
[337132986,1725450642092,-500.0,0.00014368,2]
[337132987,1725450642103,-215.38737394,0.00014368,2]
[337132988,1725450642113,-227.12,0.00014368,2]
[337132990,1725450642123,-500.0,0.00014368,2]
[337132992,1725450642133,-500.0,0.00014368,2]
[337132994,1725450642142,-500.0,0.00014368,2]
[337132996,1725450642155,-600.0,0.00014368,2]
[337132998,1725450642164,-500.0,0.00014368,2]
[337133000,1725450642173,-500.0,0.00014368,2]
[337133002,1725450642182,-500.0,0.00014368,2]
[337133004,1725450642191,-218.33,0.00014368,2]
[337133005,1725450642200,-500.0,0.00014368,2]
[337133007,1725450642209,-500.0,0.00014368,2]
[337133009,1725450642218,-500.0,0.00014368,2]
[337133011,1725450642227,-500.0,0.00014368,2]
[337133013,1725450642236,-500.0,0.00014368,2]
[337133015,1725450642245,-500.0,0.00014368,2]
[337133017,1725450642256,-541.34,0.00014368,2]
[337133019,1725450642266,-388.0,0.0001437,2]
[337133021,1725450642275,-500.0,0.00014376,2]
[337133023,1725450642285,-215.14,0.00014376,2]
[337133025,1725450642295,-500.0,0.00014376,2]
[337133027,1725450642306,-500.0,0.00014376,2]
[337133029,1725450642314,-500.0,0.00014376,2]
[337133031,1725450642325,-500.0,0.00014376,2]
[337133033,1725450642336,-500.0,0.00014376,2]
[337133035,1725450642345,-500.0,0.00014376,2]
[337133037,1725450642355,-500.0,0.00014376,2]
[337133039,1725450642364,-590.79,0.00014376,2]
[337133041,1725450642375,-500.0,0.00014376,2]
[337133043,1725450642384,-5428.61,0.00014376,2]
[337133045,1725450642394,-500.0,0.00014376,2]
[337133047,1725450642407,-816.18,0.00014376,2]
[337133049,1725450642416,-500.0,0.00014376,2]
[337133051,1725450642425,-409.1,0.00014376,2]
[337133053,1725450642434,-230.16,0.00014376,2]
[337133055,1725450642443,-500.0,0.00014376,2]
[337133057,1725450642453,-500.0,0.00014376,2]
[337133060,1725450642464,-500.0,0.00014376,2]
[337133062,1725450642476,-580.46,0.00014376,2]